[Event "V. Korchnoi Memorial 2019"]
[Site "St. Petersburg"]
[Date "2019.08.20"]
[Round "7.6"]
[White "Borisovsky, Dmitry"]
[Black "Iljiushenok, Ilia"]
[Result "0-1"]
[ECO "B90"]
[WhiteElo "2326"]
[BlackElo "2533"]
[Annotator "ChessBase"]
[PlyCount "48"]
[EventDate "2019.08.13"]
[EventType "swiss"]
[EventCountry "RUS"]
[SourceTitle "playchess.com"]
[Source "ChessBase"]
[SourceQuality "1"]
[TimeControl "5400+30"]

1. e4 {[%emt 1:30:30]} c5 {[%emt 1:30:30]} 2. Nf3 {[%emt 0:00:30]} d6 {[%emt 0:00:30]} 3. d4 {[%emt 0:00:30]} cxd4 {[%emt 0:00:30]} 4. Nxd4 {[%emt 0:00:30]} Nf6 {[%emt 0:00:30]} 5. Nc3 {[%emt 0:00:30]} a6 {[%emt 0:00:30]} 6. f3 {[%emt 0:00:30]} e5 {[%emt 0:00:30]} 7. Nb3 {[%emt 0:00:30]} Be6 {[%emt 0:00:30]} 8. Be3 {[%emt 0:00:30]} Nbd7 {[%emt 0:00:30]} 9. Qd2 {[%emt 0:00:30]} b5 {[%emt 0:00:30]} 10. g4 {[%emt 0:00:30]} b4 {[%emt 0:00:30]} 11. Nd5 {[%emt 0:00:30]} Bxd5 {[%emt 0:00:30]} 12. exd5 {[%emt 0:00:30]} Nb6 {[%emt 0:00:30]} 13. Na5 {[%emt 0:00:30]} Nbxd5 {[%emt 0:00:30]} 14. Nc4 {[%emt 0:00:30]} Nxe3 {[%emt 0:00:30]} 15. Nxe3 {[%emt 0:00:30]} d5 {[%emt 0:00:30]} 16. g5 {[%emt 0:00:30]} d4 {[%emt 0:00:30]} 17. Nc4 {[%emt 0:00:30]} Nd5 {[%emt 0:00:30]} 18. Nxe5 {[%emt 0:00:30]} Ne3 {[%emt 0:00:30]} 19. f4 {[%emt 0:00:30]} Bd6 {[%emt 0:00:30]} 20. Bg2 {[%emt 0:00:30]} Rc8 {[%emt 0:00:30]} 21. Bc6+ {[%emt 0:00:30]} Rxc6 {[%emt 0:00:30]} 22. Nxc6 {[%emt 0:00:30]} Qa8 {[%emt 0:00:30]} 23. Kf2 {[%emt 0:00:30]} Qxc6 {[%emt 0:00:30]} 24. Qxd4 {[%emt 0:00:30]} O-O {[%emt 0:00:30]} 0-1

[Event "V. Korchnoi Memorial 2019"]
[Site "St. Petersburg"]
[Date "2019.08.20"]
[Round "7.7"]
[White "Vokhidov, Shamsiddin"]
[Black "Gasanov, Eldar"]
[Result "1-0"]
[ECO "B29"]
[WhiteElo "2512"]
[BlackElo "2475"]
[Annotator "ChessBase"]
[PlyCount "137"]
[EventDate "2019.08.13"]
[EventType "swiss"]
[EventCountry "RUS"]
[SourceTitle "playchess.com"]
[Source "ChessBase"]
[SourceQuality "1"]
[TimeControl "5400+30"]

1. e4 {[%emt 0:00:00]} c5 {[%emt 0:00:00]} 2. Nf3 {[%emt 0:00:00]} Nf6 {[%emt 0:00:24]} 3. Nc3 {[%emt 0:04:36]} d5 {[%emt 0:00:18]} 4. Bb5+ {[%emt 0:05:42]} Bd7 {[%emt 0:00:44]} 5. e5 {[%emt 0:00:31]} Bxb5 {[%emt 0:00:48]} 6. Nxb5 {[%emt 0:00:14]} Qd7 {[%emt 0:02:05]} 7. Qe2 {[%emt 0:17:05]} a6 {[%emt 0:02:22]} 8. exf6 {[%emt 0:00:57]} Qxb5 {[%emt 0:02:35]} 9. Qe5 {[%emt 0:00:14]} gxf6 {[%emt 0:05:14]} 10. Qxd5 {[%emt 0:00:06]} Rg8 {[%emt 0:06:33]} 11. g3 {[%emt 0:02:17]} Qc6 {[%emt 0:07:45]} 12. Qxc6+ {[%emt 0:01:50]} Nxc6 {[%emt 0:00:05]} 13. d3 {[%emt 0:01:50]} Nb4 {[%emt 0:10:06]} 14. Kd1 {[%emt 0:01:03]} O-O-O {[%emt 0:03:42]} 15. a3 {[%emt 0:02:34]} Nc6 {[%emt 0:06:41]} 16. Be3 {[%emt 0:01:18]} c4 {[%emt 0:04:29]} 17. Ke2 {[%emt 0:00:08]} cxd3+ {[%emt 0:00:43]} 18. cxd3 {[%emt 0:00:02]} e6 {[%emt 0:01:07]} 19. Rac1 {[%emt 0:00:09]} Kb8 {[%emt 0:07:04]} 20. Rc4 {[%emt 0:00:10]} Rd5 {[%emt 0:00:46]} 21. Rhc1 {[%emt 0:04:34]} Be7 {[%emt 0:01:54]} 22. Bc5 {[%emt 0:08:58]} Rgd8 {[%emt 0:06:38]} 23. Bxe7 {[%emt 0:01:30]} Nxe7 {[%emt 0:00:05]} 24. Rc7 {[%emt 0:01:05]} R8d7 {[%emt 0:01:13]} 25. Rxd7 {[%emt 0:00:07]} Rxd7 {[%emt 0:00:03]} 26. Rc4 {[%emt 0:00:26]} Rd5 {[%emt 0:02:50]} 27. Nd2 {[%emt 0:01:38]} Rb5 {[%emt 0:04:35]} 28. b4 {[%emt 0:00:49]} Re5+ {[%emt 0:07:40]} 29. Ne4 {[%emt 0:02:56]} Ng8 {[%emt 0:02:14]} 30. Kd2 {[%emt 0:01:26]} Rd5 {[%emt 0:00:36]} 31. Nc3 {[%emt 0:00:36]} Rf5 {[%emt 0:02:05]} 32. Ne4 {[%emt 0:02:04]} Rd5 {[%emt 0:01:09]} 33. a4 {[%emt 0:03:18]} b6 {[%emt 0:01:51]} 34. Nc3 {[%emt 0:03:29]} Rh5 {[%emt 0:01:34]} 35. h4 {[%emt 0:00:24]} f5 {[%emt 0:02:35]} 36. b5 {[%emt 0:00:49]} a5 {[%emt 0:01:12]} 37. Ne2 {[%emt 0:00:13]} Ne7 {[%emt 0:00:18]} 38. Nf4 {[%emt 0:00:20]} Rh6 {[%emt 0:00:01]} 39. d4 {[%emt 0:00:23]} Kb7 {[%emt 0:01:17]} 40. Ke3 {[%emt 0:02:00]} Rf6 {[%emt 0:01:44]} 41. Rc2 {[%emt 0:00:07]} Rh6 {[%emt 0:00:50]} 42. Rc1 {[%emt 0:03:11]} Rf6 {[%emt 0:00:15]} 43. Kf3 {[%emt 0:03:01]} Rh6 {[%emt 0:00:09]} 44. Ke2 {[%emt 0:01:08]} Rf6 {[%emt 0:00:33]} 45. Ke3 {[%emt 0:00:06]} Rh6 {[%emt 0:00:23]} 46. f3 {[%emt 0:00:22]} Kb8 {[%emt 0:00:37]} 47. h5 {[%emt 0:00:54]} Rf6 {[%emt 0:00:38]} 48. g4 {[%emt 0:01:23]} h6 {[%emt 0:01:21]} 49. Rc2 {[%emt 0:00:39]} Kb7 {[%emt 0:00:20]} 50. Rg2 {[%emt 0:00:42]} fxg4 {[%emt 0:00:17]} 51. fxg4 {[%emt 0:00:05]} Kc7 {[%emt 0:00:23]} 52. Ke4 {[%emt 0:00:29]} Nd5 {[%emt 0:02:18]} 53. Nxd5+ {[%emt 0:00:17]} exd5+ {[%emt 0:00:01]} 54. Kxd5 {[%emt 0:00:08]} Kd7 {[%emt 0:00:28]} 55. Rc2 {[%emt 0:01:11]} Rf4 {[%emt 0:02:01]} 56. Rc6 {[%emt 0:00:25]} Rxg4 {[%emt 0:00:09]} 57. Rxh6 {[%emt 0:00:52]} Rg5+ {[%emt 0:00:13]} 58. Kc4 {[%emt 0:00:28]} Kc7 {[%emt 0:00:09]} 59. Rc6+ {[%emt 0:00:08]} Kb7 {[%emt 0:00:03]} 60. h6 {[%emt 0:00:06]} Rf5 {[%emt 0:00:33]} 61. Kd3 {[%emt 0:00:21]} Rf4 {[%emt 0:00:29]} 62. Ke3 {[%emt 0:00:10]} Rf1 {[%emt 0:00:50]} 63. d5 {[%emt 0:00:15]} Rh1 {[%emt 0:00:42]} 64. Kf4 {[%emt 0:00:06]} Rh5 {[%emt 0:00:12]} 65. Ke4 {[%emt 0:00:29]} Rh4+ {[%emt 0:00:29]} 66. Kf5 {[%emt 0:01:31]} Rh5+ {[%emt 0:00:44]} 67. Kg4 {[%emt 0:00:07]} Rxd5 {[%emt 0:01:14]} 68. h7 {[%emt 0:00:19]} Rd8 {[%emt 0:00:04]} 69. Kg5 {[%emt 0:00:14]} 1-0

[Event "V. Korchnoi Memorial 2019"]
[Site "St. Petersburg"]
[Date "2019.08.20"]
[Round "7.8"]
[White "Samusenko, Maksim"]
[Black "Goganov, Aleksey"]
[Result "1/2-1/2"]
[ECO "B40"]
[WhiteElo "2438"]
[BlackElo "2564"]
[Annotator "ChessBase"]
[PlyCount "74"]
[EventDate "2019.08.13"]
[EventType "swiss"]
[EventCountry "RUS"]
[SourceTitle "playchess.com"]
[Source "ChessBase"]
[SourceQuality "1"]
[TimeControl "5400+30"]

1. e4 {[%emt 0:00:00]} c5 {[%emt 0:00:03]} 2. Nf3 {[%emt 0:00:00]} e6 {[%emt 0:00:17]} 3. g3 {[%emt 0:01:02]} Nc6 {[%emt 0:00:06]} 4. Bg2 {[%emt 0:00:12]} Nf6 {[%emt 0:00:13]} 5. Qe2 {[%emt 0:00:20]} d5 {[%emt 0:00:48]} 6. exd5 {[%emt 0:00:36]} Nxd5 {[%emt 0:00:08]} 7. O-O {[%emt 0:01:00]} Be7 {[%emt 0:00:15]} 8. Rd1 {[%emt 0:01:57]} Qb6 {[%emt 0:01:37]} 9. Na3 {[%emt 0:17:29]} O-O {[%emt 0:00:36]} 10. Nc4 {[%emt 0:01:13]} Qc7 {[%emt 0:04:23]} 11. d4 {[%emt 0:03:44]} cxd4 {[%emt 0:14:18]} 12. Nxd4 {[%emt 0:00:17]} Nxd4 {[%emt 0:00:05]} 13. Rxd4 {[%emt 0:00:05]} Bf6 {[%emt 0:00:21]} 14. Rd1 {[%emt 0:05:56]} Bd7 {[%emt 0:00:43]} 15. Ne3 {[%emt 0:07:00]} Nxe3 {[%emt 0:01:26]} 16. Bxe3 {[%emt 0:00:08]} Bc6 {[%emt 0:00:10]} 17. c4 {[%emt 0:01:38]} Bxg2 {[%emt 0:05:11]} 18. Kxg2 {[%emt 0:00:05]} Qc6+ {[%emt 0:00:05]} 19. Kg1 {[%emt 0:00:22]} a6 {[%emt 0:00:51]} 20. Rac1 {[%emt 0:05:34]} Rfd8 {[%emt 0:00:43]} 21. b3 {[%emt 0:02:31]} Qe4 {[%emt 0:10:21]} 22. Rxd8+ {[%emt 0:05:20]} Rxd8 {[%emt 0:02:34]} 23. Rd1 {[%emt 0:00:07]} Rxd1+ {[%emt 0:00:07]} 24. Qxd1 {[%emt 0:00:03]} g6 {[%emt 0:01:05]} 25. Qd7 {[%emt 0:02:50]} Qb1+ {[%emt 0:00:08]} 26. Kg2 {[%emt 0:00:04]} Qe4+ {[%emt 0:00:05]} 27. Kg1 {[%emt 0:00:04]} Kg7 {[%emt 0:01:42]} 28. h4 {[%emt 0:01:51]} h5 {[%emt 0:00:19]} 29. Qc8 {[%emt 0:07:40]} Be5 {[%emt 0:01:42]} 30. Bc5 {[%emt 0:01:12]} Kh7 {[%emt 0:00:56]} 31. Qd7 {[%emt 0:03:46]} Kg7 {[%emt 0:03:54]} 32. Qc8 {[%emt 0:01:22]} Qf3 {[%emt 0:00:58]} 33. Qd8 {[%emt 0:00:58]} Kh7 {[%emt 0:01:57]} 34. Qg5 {[%emt 0:06:45]} Bc3 {[%emt 0:03:21]} 35. Qd8 {[%emt 0:05:29]} Be5 {[%emt 0:03:20]} 36. Qg5 {[%emt 0:00:11]} Bc3 {[%emt 0:02:36]} 37. Qd8 {[%emt 0:00:08]} Be5 {[%emt 0:41:06]} 1/2-1/2

[Event "V. Korchnoi Memorial 2019"]
[Site "St. Petersburg"]
[Date "2019.08.20"]
[Round "7.9"]
[White "Vorobiov, Evgeny E."]
[Black "Bykov, Oleg"]
[Result "1-0"]
[ECO "A64"]
[WhiteElo "2560"]
[BlackElo "2382"]
[Annotator "ChessBase"]
[PlyCount "125"]
[EventDate "2019.08.13"]
[EventType "swiss"]
[EventCountry "RUS"]
[SourceTitle "playchess.com"]
[Source "ChessBase"]
[SourceQuality "1"]
[TimeControl "5400+30"]

1. d4 {[%emt 0:00:00]} Nf6 {[%emt 0:01:03]} 2. c4 {[%emt 0:00:00]} e6 {[%emt 0:00:48]} 3. g3 {[%emt 0:00:05]} c5 {[%emt 0:00:24]} 4. d5 {[%emt 0:01:52]} exd5 {[%emt 0:00:08]} 5. cxd5 {[%emt 0:00:05]} d6 {[%emt 0:00:09]} 6. Nc3 {[%emt 0:00:21]} g6 {[%emt 0:00:41]} 7. Bg2 {[%emt 0:00:55]} Bg7 {[%emt 0:00:06]} 8. Nf3 {[%emt 0:00:04]} O-O {[%emt 0:00:09]} 9. O-O {[%emt 0:00:03]} Re8 {[%emt 0:04:27]} 10. Nd2 {[%emt 0:01:55]} a6 {[%emt 0:05:06]} 11. a4 {[%emt 0:00:24]} Nbd7 {[%emt 0:00:05]} 12. h3 {[%emt 0:05:12]} Rb8 {[%emt 0:00:46]} 13. Nc4 {[%emt 0:00:33]} Ne5 {[%emt 0:00:05]} 14. Na3 {[%emt 0:01:20]} Nh5 {[%emt 0:03:03]} 15. e4 {[%emt 0:10:04]} Bd7 {[%emt 0:02:09]} 16. a5 {[%emt 0:03:15]} Qxa5 {[%emt 0:00:27]} 17. g4 {[%emt 0:04:51]} Nf6 {[%emt 0:00:10]} 18. f4 {[%emt 0:01:15]} Nexg4 {[%emt 0:00:20]} 19. hxg4 {[%emt 0:00:17]} Nxg4 {[%emt 0:00:03]} 20. f5 {[%emt 0:04:52]} h5 {[%emt 0:01:04]} 21. Bg5 {[%emt 0:06:49]} Qb4 {[%emt 0:04:21]} 22. f6 {[%emt 0:07:13]} Bh8 {[%emt 0:02:53]} 23. Qd2 {[%emt 0:05:23]} Re5 {[%emt 0:14:30]} 24. Nc2 {[%emt 0:03:07]} Qb3 {[%emt 0:07:35]} 25. Bh4 {[%emt 0:02:13]} c4 {[%emt 0:04:54]} 26. Bh3 {[%emt 0:09:02]} Qb6+ {[%emt 0:32:10]} 27. Qd4 {[%emt 0:03:11]} Qxd4+ {[%emt 0:03:20]} 28. Nxd4 {[%emt 0:00:09]} Nxf6 {[%emt 0:00:28]} 29. Bxf6 {[%emt 0:06:52]} Bxh3 {[%emt 0:00:09]} 30. Bxe5 {[%emt 0:08:09]} Bxe5 {[%emt 0:01:46]} 31. Rfd1 {[%emt 0:00:21]} Bg4 {[%emt 0:00:08]} 32. Rd2 {[%emt 0:02:13]} Bf4 {[%emt 0:00:06]} 33. Rf2 {[%emt 0:00:13]} Be3 {[%emt 0:00:20]} 34. Nc2 {[%emt 0:00:04]} Bxf2+ {[%emt 0:03:41]} 35. Kxf2 {[%emt 0:00:02]} Bd7 {[%emt 0:01:42]} 36. Ke3 {[%emt 0:02:21]} f5 {[%emt 0:01:26]} 37. Nd4 {[%emt 0:06:41]} Rf8 {[%emt 0:02:56]} 38. exf5 {[%emt 0:02:32]} Bxf5 {[%emt 0:00:03]} 39. Nxf5 {[%emt 0:00:14]} Rxf5 {[%emt 0:00:03]} 40. Ne4 {[%emt 0:00:05]} Kf8 {[%emt 0:01:03]} 41. Kd4 {[%emt 0:00:21]} Ke7 {[%emt 0:00:56]} 42. Rg1 {[%emt 0:00:11]} g5 {[%emt 0:00:20]} 43. Nxg5 {[%emt 0:01:04]} h4 {[%emt 0:01:47]} 44. Rg4 {[%emt 0:02:43]} b5 {[%emt 0:01:04]} 45. Nh3 {[%emt 0:00:46]} Rf3 {[%emt 0:01:19]} 46. Rxh4 {[%emt 0:00:20]} Rd3+ {[%emt 0:01:24]} 47. Ke4 {[%emt 0:00:05]} Rd2 {[%emt 0:00:15]} 48. Rh7+ {[%emt 0:00:34]} Kd8 {[%emt 0:01:03]} 49. Kf5 {[%emt 0:03:14]} Rxd5+ {[%emt 0:00:15]} 50. Ke6 {[%emt 0:00:02]} Rd4 {[%emt 0:00:59]} 51. Ng5 {[%emt 0:00:16]} Rd2 {[%emt 0:00:22]} 52. Ne4 {[%emt 0:00:59]} Rxb2 {[%emt 0:00:17]} 53. Rd7+ {[%emt 0:00:42]} Kc8 {[%emt 0:00:05]} 54. Nxd6+ {[%emt 0:00:11]} Kb8 {[%emt 0:00:01]} 55. Kd5 {[%emt 0:00:12]} Rh2 {[%emt 0:01:35]} 56. Kc6 {[%emt 0:00:11]} Rh8 {[%emt 0:00:20]} 57. Kb6 {[%emt 0:00:42]} c3 {[%emt 0:00:42]} 58. Nf7 {[%emt 0:01:00]} Rc8 {[%emt 0:00:51]} 59. Ne5 {[%emt 0:00:34]} Rh8 {[%emt 0:01:08]} 60. Nf7 {[%emt 0:01:36]} c2 61. Rb7+ {[%emt 0:00:30]} Ka8 62. Rc7 Re8 {[%emt 0:01:30]} 63. Ne5 {[%emt 0:01:00]} 1-0

[Event "V. Korchnoi Memorial 2019"]
[Site "St. Petersburg"]
[Date "2019.08.20"]
[Round "7.10"]
[White "Sorokin, Aleksey"]
[Black "Palchun, Grigory"]
[Result "1-0"]
[ECO "E21"]
[WhiteElo "2537"]
[BlackElo "2368"]
[Annotator "ChessBase"]
[PlyCount "104"]
[EventDate "2019.08.13"]
[EventType "swiss"]
[EventCountry "RUS"]
[SourceTitle "playchess.com"]
[Source "ChessBase"]
[SourceQuality "1"]
[TimeControl "5400+30"]

1. d4 {[%emt 0:00:00]} Nf6 {[%emt 0:08:05]} 2. c4 {[%emt 0:00:00]} e6 {[%emt 0:00:05]} 3. Nc3 {[%emt 0:00:24]} Bb4 {[%emt 0:00:06]} 4. g3 {[%emt 0:00:28]} O-O {[%emt 0:06:30]} 5. Bg2 {[%emt 0:00:09]} d5 {[%emt 0:01:37]} 6. Nf3 {[%emt 0:00:30]} b6 {[%emt 0:10:35]} 7. O-O {[%emt 0:03:48]} Bb7 {[%emt 0:00:07]} 8. Ne5 {[%emt 0:01:58]} c6 {[%emt 0:03:44]} 9. Bg5 {[%emt 0:03:38]} Be7 {[%emt 0:07:29]} 10. Qa4 {[%emt 0:12:57]} Nfd7 {[%emt 0:04:17]} 11. Bxe7 {[%emt 0:03:00]} Qxe7 {[%emt 0:04:04]} 12. Nd3 {[%emt 0:00:19]} Na6 {[%emt 0:10:35]} 13. Rad1 {[%emt 0:03:02]} Rfd8 {[%emt 0:01:51]} 14. Rfe1 {[%emt 0:04:31]} Nc7 {[%emt 0:09:09]} 15. e4 {[%emt 0:02:50]} dxc4 {[%emt 0:06:15]} 16. Qxc4 {[%emt 0:01:05]} Ba6 {[%emt 0:00:40]} 17. Qb4 {[%emt 0:11:25]} c5 {[%emt 0:02:27]} 18. Qa3 {[%emt 0:00:26]} Bxd3 {[%emt 0:02:01]} 19. Rxd3 {[%emt 0:01:31]} Ne5 {[%emt 0:00:29]} 20. Rdd1 {[%emt 0:00:55]} Nc4 {[%emt 0:00:49]} 21. Qb3 {[%emt 0:00:20]} cxd4 {[%emt 0:01:41]} 22. Qxc4 {[%emt 0:04:13]} dxc3 {[%emt 0:00:04]} 23. Qxc3 {[%emt 0:00:27]} e5 {[%emt 0:01:08]} 24. Bf1 {[%emt 0:00:55]} Rac8 {[%emt 0:07:16]} 25. Rc1 {[%emt 0:05:47]} Ne8 {[%emt 0:03:51]} 26. Qxc8 {[%emt 0:01:04]} Rxc8 {[%emt 0:00:08]} 27. Rxc8 {[%emt 0:00:04]} h5 {[%emt 0:02:49]} 28. Bb5 {[%emt 0:11:15]} Qb4 {[%emt 0:00:09]} 29. Rxe8+ {[%emt 0:00:44]} Kh7 {[%emt 0:00:01]} 30. Re3 {[%emt 0:00:56]} Qxb5 {[%emt 0:00:06]} 31. Re7 {[%emt 0:00:17]} Qxb2 {[%emt 0:04:09]} 32. Rxa7 {[%emt 0:00:14]} f6 {[%emt 0:01:52]} 33. h3 {[%emt 0:00:20]} Kh6 {[%emt 0:00:18]} 34. Kg2 {[%emt 0:00:28]} Qc2 {[%emt 0:00:30]} 35. a3 {[%emt 0:00:49]} Qc6 {[%emt 0:00:13]} 36. Rf7 {[%emt 0:02:13]} Kg6 {[%emt 0:00:06]} 37. Rf8 {[%emt 0:00:29]} Qd7 {[%emt 0:00:23]} 38. Rh8 {[%emt 0:01:52]} Qc7 {[%emt 0:00:15]} 39. g4 {[%emt 0:03:08]} hxg4 {[%emt 0:00:01]} 40. Rg3 {[%emt 0:00:53]} f5 {[%emt 0:01:07]} 41. exf5+ {[%emt 0:00:40]} Kxf5 {[%emt 0:00:01]} 42. Rf8+ {[%emt 0:01:18]} Ke6 {[%emt 0:00:16]} 43. Rxg4 {[%emt 0:00:19]} Qc6+ {[%emt 0:00:43]} 44. Kh2 {[%emt 0:00:39]} Qc7 {[%emt 0:01:56]} 45. Rf3 {[%emt 0:00:34]} e4+ {[%emt 0:00:56]} 46. Rfg3 {[%emt 0:00:18]} Qc2 {[%emt 0:00:11]} 47. Kg2 {[%emt 0:00:21]} Kd6 {[%emt 0:01:42]} 48. Rg6+ {[%emt 0:00:32]} Ke5 {[%emt 0:00:39]} 49. Rxb6 {[%emt 0:00:39]} Qc7 {[%emt 0:00:27]} 50. Rbg6 {[%emt 0:00:25]} Qb7 {[%emt 0:00:14]} 51. Rxg7 {[%emt 0:00:12]} Qa8 {[%emt 0:00:03]} 52. Re3 {[%emt 0:00:34]} Kd5 {[%emt 0:01:50]} 1-0

[Event "V. Korchnoi Memorial 2019"]
[Site "St. Petersburg"]
[Date "2019.08.21"]
[Round "8.3"]
[White "Iljiushenok, Ilia"]
[Black "Lobanov, Sergei"]
[Result "1/2-1/2"]
[ECO "C84"]
[WhiteElo "2533"]
[BlackElo "2495"]
[Annotator "ChessBase"]
[PlyCount "92"]
[EventDate "2019.08.13"]
[EventType "swiss"]
[EventCountry "RUS"]
[SourceTitle "playchess.com"]
[Source "ChessBase"]
[SourceQuality "1"]
[TimeControl "5400+30"]

1. e4 {[%emt 0:00:00]} e5 {[%emt 0:07:33]} 2. Nf3 {[%emt 0:00:00]} Nc6 {[%emt 0:00:06]} 3. Bb5 {[%emt 0:00:40]} a6 {[%emt 0:00:06]} 4. Ba4 {[%emt 0:00:39]} Nf6 {[%emt 0:00:47]} 5. O-O {[%emt 0:00:07]} Be7 {[%emt 0:00:53]} 6. d3 {[%emt 0:00:32]} b5 {[%emt 0:00:19]} 7. Bb3 {[%emt 0:00:05]} d6 {[%emt 0:00:05]} 8. a4 {[%emt 0:00:11]} b4 {[%emt 0:04:51]} 9. a5 {[%emt 0:01:02]} O-O {[%emt 0:00:39]} 10. h3 {[%emt 0:03:36]} Rb8 {[%emt 0:00:45]} 11. Nbd2 {[%emt 0:01:03]} Be6 {[%emt 0:00:36]} 12. Nc4 {[%emt 0:18:28]} Nd4 {[%emt 0:10:51]} 13. Nxd4 {[%emt 0:05:09]} exd4 {[%emt 0:00:01]} 14. Nd2 {[%emt 0:09:42]} d5 {[%emt 0:07:18]} 15. exd5 {[%emt 0:04:29]} Bxd5 {[%emt 0:00:13]} 16. Bc4 {[%emt 0:09:33]} Bb7 {[%emt 0:01:32]} 17. Re1 {[%emt 0:00:30]} Qd7 {[%emt 0:02:59]} 18. Ne4 {[%emt 0:04:15]} Nd5 {[%emt 0:03:25]} 19. Qh5 {[%emt 0:01:41]} f6 {[%emt 0:11:56]} 20. c3 {[%emt 0:04:19]} dxc3 {[%emt 0:02:12]} 21. bxc3 {[%emt 0:00:02]} Kh8 {[%emt 0:00:04]} 22. cxb4 {[%emt 0:01:58]} Bxb4 {[%emt 0:00:35]} 23. Rf1 {[%emt 0:07:29]} Rbe8 {[%emt 0:04:03]} 24. Rb1 {[%emt 0:10:30]} Re5 {[%emt 0:03:41]} 25. Qh4 {[%emt 0:00:54]} c5 {[%emt 0:02:10]} 26. Bd2 {[%emt 0:01:39]} Bxd2 {[%emt 0:04:04]} 27. Nxd2 {[%emt 0:01:13]} Nb4 {[%emt 0:03:21]} 28. Nb3 {[%emt 0:03:22]} Qc6 {[%emt 0:02:14]} 29. f3 {[%emt 0:00:04]} Nc2 {[%emt 0:00:26]} 30. Qf2 {[%emt 0:01:22]} Ne3 {[%emt 0:01:47]} 31. Rfe1 {[%emt 0:00:03]} Rfe8 {[%emt 0:02:44]} 32. Nd2 {[%emt 0:00:59]} Qc7 {[%emt 0:02:14]} 33. Rxe3 {[%emt 0:01:19]} Rxe3 {[%emt 0:00:09]} 34. Ne4 {[%emt 0:00:02]} Bxe4 {[%emt 0:03:01]} 35. Qxe3 {[%emt 0:00:11]} Bg6 {[%emt 0:00:04]} 36. Qd2 {[%emt 0:00:37]} Qd6 {[%emt 0:00:05]} 37. Rb6 {[%emt 0:01:42]} Qd4+ {[%emt 0:02:34]} 38. Kh2 {[%emt 0:00:35]} h6 {[%emt 0:00:32]} 39. Rxa6 {[%emt 0:01:05]} Rd8 {[%emt 0:04:46]} 40. Qe2 {[%emt 0:02:47]} Bxd3 {[%emt 0:02:08]} 41. Bxd3 {[%emt 0:00:03]} Qxd3 {[%emt 0:00:02]} 42. Qxd3 {[%emt 0:00:06]} Rxd3 {[%emt 0:00:03]} 43. Rc6 {[%emt 0:00:44]} Rc3 {[%emt 0:00:05]} 44. a6 {[%emt 0:00:06]} Ra3 {[%emt 0:01:01]} 45. Kg3 {[%emt 0:00:23]} c4 {[%emt 0:00:05]} 46. Rxc4 {[%emt 0:00:09]} Rxa6 {[%emt 0:00:05]} 1/2-1/2

[Event "V. Korchnoi Memorial 2019"]
[Site "St. Petersburg"]
[Date "2019.08.21"]
[Round "8.5"]
[White "Mokshanov, Alexey"]
[Black "Vorobiov, Evgeny E."]
[Result "1/2-1/2"]
[ECO "B27"]
[WhiteElo "2447"]
[BlackElo "2560"]
[Annotator "ChessBase"]
[PlyCount "73"]
[EventDate "2019.08.13"]
[EventType "swiss"]
[EventCountry "RUS"]
[SourceTitle "playchess.com"]
[Source "ChessBase"]
[SourceQuality "1"]
[TimeControl "5400+30"]

1. e4 {[%emt 0:00:00]} c5 {[%emt 0:00:00]} 2. Nf3 {[%emt 0:00:00]} g6 {[%emt 0:00:00]} 3. c3 {[%emt 0:00:00]} Bg7 {[%emt 0:00:04]} 4. d4 {[%emt 0:00:02]} cxd4 {[%emt 0:00:04]} 5. cxd4 {[%emt 0:00:02]} d5 {[%emt 0:00:05]} 6. e5 {[%emt 0:00:10]} a6 {[%emt 0:00:05]} 7. Bd3 {[%emt 0:08:08]} Nc6 {[%emt 0:01:23]} 8. O-O {[%emt 0:00:38]} f6 {[%emt 0:20:37]} 9. Nbd2 {[%emt 0:37:33]} fxe5 {[%emt 0:04:18]} 10. Nxe5 {[%emt 0:03:54]} Nxe5 {[%emt 0:03:40]} 11. dxe5 {[%emt 0:00:06]} Nh6 {[%emt 0:00:06]} 12. Qa4+ {[%emt 0:07:52]} Qd7 {[%emt 0:05:57]} 13. Qa3 {[%emt 0:04:49]} O-O {[%emt 0:05:55]} 14. f4 {[%emt 0:02:37]} b5 {[%emt 0:12:47]} 15. Qc5 {[%emt 0:05:36]} Bb7 {[%emt 0:03:48]} 16. Qd4 {[%emt 0:05:35]} Nf5 {[%emt 0:04:17]} 17. Bxf5 {[%emt 0:00:11]} Qxf5 {[%emt 0:01:24]} 18. Nb3 {[%emt 0:00:33]} Rac8 {[%emt 0:00:44]} 19. Qb6 {[%emt 0:01:39]} Ba8 {[%emt 0:01:50]} 20. Bd2 {[%emt 0:07:38]} Rc4 {[%emt 0:08:37]} 21. Rae1 {[%emt 0:01:34]} d4 {[%emt 0:04:32]} 22. Nxd4 {[%emt 0:04:21]} Qd3 {[%emt 0:00:42]} 23. Be3 {[%emt 0:00:21]} Bd5 {[%emt 0:02:08]} 24. b3 {[%emt 0:03:31]} Rc3 {[%emt 0:00:47]} 25. Rf2 {[%emt 0:00:36]} Rfc8 {[%emt 0:02:52]} 26. h3 {[%emt 0:00:56]} Bh6 {[%emt 0:01:37]} 27. Qxa6 {[%emt 0:00:55]} Qe4 {[%emt 0:01:08]} 28. Nf3 {[%emt 0:01:48]} e6 {[%emt 0:10:53]} 29. Bd2 {[%emt 0:00:19]} Qd3 {[%emt 0:00:10]} 30. Bxc3 {[%emt 0:00:15]} Qxc3 {[%emt 0:00:07]} 31. Rd2 {[%emt 0:01:51]} Ra8 {[%emt 0:02:41]} 32. Qb6 {[%emt 0:00:33]} Bxf3 {[%emt 0:01:50]} 33. Qxe6+ {[%emt 0:00:18]} Kh8 {[%emt 0:00:13]} 34. Qf6+ {[%emt 0:00:05]} Kg8 {[%emt 0:00:04]} 35. Qe6+ {[%emt 0:00:48]} Kh8 {[%emt 0:00:01]} 36. Qf6+ {[%emt 0:01:32]} Kg8 {[%emt 0:00:01]} 37. Qe6+ {[%emt 0:00:00]} 1/2-1/2